bitfinex/quotes_SOLUSD_20250418
["timestamp","ask_amount","ask_price","bid_price","bid_amount"]
[1744947506587,7.4599725,134.59,134.55,6.96255219]
[1744947508180,0.03,134.59,134.57,6.96255219]
[1744947508488,0.03,134.59,134.58,6.96255219]
[1744947509909,0.03,134.59,134.57,89.80255219]
[1744947510855,0.03,134.59,134.55,6.96255219]
[1744947511451,14.42252469,134.59,134.54,82.84]
[1744947511760,14.42252469,134.59,134.54,89.80255219]
[1744947511967,6.96255219,134.58,134.54,82.84]
[1744947512262,6.96255219,134.58,134.54,89.80255219]
[1744947512580,6.99255219,134.59,134.54,89.80255219]
[1744947514087,0.03,134.59,134.54,89.80255219]
[1744947514295,0.03,134.59,134.58,6.96255219]
[1744947514473,0.03,134.59,134.58,21.72255219]
[1744947515770,0.03,134.59,134.58,14.76]
[1744947516187,0.03,134.59,134.58,21.72255219]
[1744947521695,0.03,134.59,134.58,26.18086694]
[1744947524802,0.03,134.59,134.58,109.02086694]
[1744947528104,0.03,134.59,134.58,104.56255219]
[1744947528504,0.03,134.59,134.58,129.44735165]
[1744947533890,0.03,134.59,134.55,97.6]
[1744947534110,0.03,134.59,134.55,104.56255219]
[1744947534512,0.03,134.59,134.55,130.56255219]
[1744947535013,0.03,134.59,134.57,6.96255219]
[1744947535382,0.03,134.59,134.58,6.96255219]
[1744947535588,0.03,134.59,134.58,32.96255219]
[1744947536100,0.03,134.59,134.58,37.42086694]
[1744947536317,0.03,134.59,134.58,120.68735165]
[1744947536619,0.03,134.59,134.58,140.68735165]
[1744947537913,0.03,134.59,134.58,114.68735165]
[1744947538122,0.03,134.59,134.58,133.33700051]
[1744947539513,0.03,134.6,134.59,19.07613357]
[1744947539713,0.03,134.6,134.59,26.03868576]
[1744947540414,0.03,134.6,134.59,30.49666926]
[1744947540913,0.03,134.6,134.59,56.49666926]
[1744947541411,0.03,134.6,134.59,37.8470204]
[1744947542419,0.03,134.6,134.59,120.6870204]
[1744947544202,0.03,134.6,134.59,140.6870204]
[1744947544937,0.03,134.6,134.59,115.80255219]
[1744947545091,0.03,134.6,134.59,123.66]
[1744947545295,0.03,134.6,134.59,130.62255219]
[1744947545597,0.03,134.6,134.59,97.66]
[1744947547518,0.03,134.6,134.59,104.62255219]
[1744947548118,0.03,134.6,134.59,109.08053569]
[1744947549315,0.03,134.6,134.59,109.5070204]
[1744947550520,0.03,134.6,134.59,109.08053569]
[1744947550828,0.03,134.6,134.59,104.62255219]
[1744947551024,0.03,134.6,134.59,97.66]
[1744947551543,0.03,134.6,134.59,104.62255219]
[1744947552741,0.03,134.6,134.59,14.82]
[1744947562246,0.03,134.6,134.59,25.68676633]
[1744947567630,0.03,134.6,134.59,108.52676633]
[1744947568746,0.03,134.6,134.59,97.66]
[1744947569245,0.03,134.6,134.59,14.82]
[1744947569548,0.03,134.6,134.56,10.86676633]
[1744947569734,7.4594205,134.6,134.56,10.86676633]
[1744947571544,7.4594205,134.6,134.57,10.86676633]
[1744947571740,0.03,134.6,134.59,10.86676633]
[1744947572142,0.03,134.6,134.59,93.70676633]
[1744947572340,0.03,134.6,134.59,108.48676633]
[1744947573131,0.03,134.6,134.59,112.94474983]
[1744947575148,0.03,134.6,134.59,109.02825529]
[1744947576550,0.03,134.6,134.59,109.45474]
[1744947577727,0.03,134.6,134.59,26.61474]
[1744947583453,0.03,134.6,134.59,109.51474]
[1744947585367,0.03,134.6,134.59,104.63027179]
[1744947592477,0.03,134.6,134.59,89.85027179]
[1744947592667,0.03,134.6,134.59,104.63027179]
[1744947594650,0.03,134.6,134.59,89.85027179]
[1744947594849,0.03,134.6,134.59,104.63027179]
[1744947595363,0.03,134.6,134.59,21.73027179]
[1744947596965,0.03,134.6,134.59,26.18825529]
[1744947602763,0.03,134.6,134.59,26.61474]
[1744947606980,0.03,134.6,134.59,109.51474]
[1744947608975,0.03,134.6,134.57,82.9]
[1744947609152,0.03,134.6,134.57,104.61027179]
[1744947609657,0.03,134.6,134.58,6.95027179]
[1744947609863,0.03,134.6,134.59,6.95027179]
[1744947618881,0.03,134.6,134.58,6.95027179]
[1744947623388,0.03,134.6,134.57,104.61027179]
[1744947625387,0.03,134.6,134.59,6.95027179]
[1744947633798,0.03,134.6,134.57,82.9]
[1744947633996,0.03,134.6,134.55,21.71027179]
[1744947634496,0.03,134.6,134.56,6.95027179]
[1744947635102,7.4594205,134.6,134.56,6.95027179]
[1744947636403,14.40969229,134.6,134.56,6.95027179]
[1744947636587,15.94539229,134.6,134.56,6.95027179]
[1744947637900,34.51894355,134.6,134.56,6.95027179]
[1744947638297,5.47217228,134.59,134.56,6.95027179]
[1744947638598,5.47217228,134.59,134.55,21.71027179]
[1744947639397,7.43052459,134.58,134.55,21.71027179]
[1744947641910,7.4299725,134.59,134.55,21.71027179]
[1744947643512,26.00490377,134.59,134.55,6.95027179]
[1744947643892,32.95517556,134.59,134.54,6.95027179]
[1744947644099,26.00490377,134.59,134.55,6.95027179]
[1744947647110,32.95517556,134.59,134.54,21.71027179]
[1744947647414,5.46081312,134.58,134.54,21.71027179]
[1744947647789,12.41108491,134.58,134.54,14.76]
[1744947648609,6.95027179,134.58,134.54,14.76]
[1744947649318,26.00876866,134.57,134.54,14.76]
[1744947653204,25.52796369,134.57,134.54,14.76]
[1744947654714,32.95904045,134.57,134.54,14.76]
[1744947655912,32.95904045,134.57,134.53,0.063]
[1744947656120,25.59992065,134.54,134.53,0.063]
[1744947657208,33.0326544,134.54,134.53,0.063]
[1744947657924,38.47889017,134.54,134.53,0.063]
[1744947659126,38.47889017,134.54,134.52,0.063]
[1744947659127,26.02640536,134.53,134.52,0.063]
[1744947659325,33.45969161,134.53,134.52,0.063]
[1744947661423,38.90168518,134.53,134.52,0.063]
[1744947662126,12.87527982,134.53,134.52,0.063]
[1744947662325,12.87527982,134.53,134.52,7.01327179]
[1744947662532,5.44199357,134.53,134.52,7.01327179]
[1744947663024,7.43241077,134.55,134.52,7.01327179]
[1744947663235,7.43241077,134.55,134.53,6.95027179]
[1744947663616,7.43162901,134.56,134.53,6.95027179]
[1744947663830,7.43162901,134.56,134.52,7.01327179]
[1744947666128,6.95027179,134.55,134.52,0.063]
[1744947667938,7.43273375,134.54,134.52,0.063]
[1744947670039,7.43273375,134.54,134.52,7.01327179]
[1744947671238,7.43218134,134.55,134.52,7.01327179]
[1744947672025,7.43218134,134.55,134.53,6.95027179]
[1744947673238,7.43162901,134.56,134.53,6.95027179]
[1744947675057,7.43162901,134.56,134.52,7.01327179]
[1744947675334,7.43162901,134.56,134.52,0.063]
[1744947675335,25.59992065,134.55,134.52,0.063]
[1744947676538,7.43273375,134.54,134.52,0.063]
[1744947677441,14.38300554,134.54,134.52,0.063]
[1744947687250,12.89112289,134.53,134.52,0.063]
[1744947700335,38.89112289,134.53,134.52,0.063]
[1744947707162,64.91752825,134.53,134.52,1e-08]
[1744947707363,67.6564004,134.53,134.52,1e-08]
[1744947707656,26.0,134.5,134.49,1e-08]
[1744947707868,52.02640536,134.5,134.48,1e-08]
[1744947708054,6.95027179,134.49,134.48,1e-08]
[1744947708840,12.40810843,134.49,134.48,1e-08]
[1744947709037,19.84360549,134.49,134.48,1e-08]
[1744947709242,44.64964886,134.48,134.47,1e-08]
[1744947709456,51.59992065,134.48,134.47,1e-08]
[1744947710135,57.05775729,134.48,134.45,0.063]
[1744947710365,25.59992065,134.46,134.45,0.063]
[1744947711164,18.64964886,134.45,134.43,1e-08]
[1744947711359,6.95027179,134.44,134.43,1e-08]
[1744947712159,12.40810843,134.44,134.43,1e-08]
[1744947712555,24.1074855,134.44,134.43,1e-08]
[1744947713162,26.08791128,134.44,134.43,1e-08]
[1744947713853,33.03818307,134.44,134.43,1e-08]
[1744947719255,14.38853421,134.44,134.43,1e-08]
[1744947720056,7.43826242,134.44,134.43,1e-08]
[1744947720358,7.43786239,134.45,134.43,1e-08]
[1744947720855,7.43715603,134.46,134.43,1e-08]
[1744947721049,14.38742782,134.46,134.43,1e-08]
[1744947721253,6.95027179,134.44,134.43,1e-08]
[1744947722272,14.38853421,134.44,134.43,1e-08]
[1744947723650,33.03818307,134.44,134.43,1e-08]
[1744947725273,26.02640536,134.43,134.42,1e-08]
[1744947726575,33.4652211,134.43,134.42,1e-08]
[1744947730085,14.38908753,134.43,134.42,1e-08]
[1744947730259,7.43881574,134.43,134.42,1e-08]
[1744947732781,14.38908753,134.43,134.42,1e-08]
[1744947733555,14.67341067,134.43,134.42,1e-08]
[1744947733758,14.81557224,134.43,134.42,1e-08]
[1744947735684,33.4652211,134.43,134.42,1e-08]
[1744947737077,33.03873639,134.43,134.42,1e-08]
[1744947742075,26.0884646,134.43,134.42,1e-08]
[1744947742990,33.03873639,134.43,134.42,1e-08]
[1744947744186,7.43881574,134.43,134.42,1e-08]
[1744947746285,33.03873639,134.43,134.42,1e-08]
[1744947749989,38.50654168,134.43,134.42,1e-08]
[1744947752386,31.55626989,134.43,134.42,1e-08]
[1744947752685,5.46780529,134.43,134.42,6.9502718]
[1744947754194,7.43834693,134.44,134.42,6.9502718]
[1744947754388,26.0300461,134.46,134.43,6.95027179]
[1744947754607,26.0300461,134.46,134.42,6.9502718]
[1744947755702,7.43826242,134.44,134.42,6.9502718]
[1744947756693,7.43826242,134.44,134.43,6.95027179]
[1744947758100,26.0300461,134.46,134.43,6.95027179]
[1744947758902,26.0300461,134.46,134.42,6.9502718]
[1744947761705,26.0300461,134.46,134.42,1e-08]
[1744947761910,32.98031789,134.46,134.42,1e-08]
[1744947762589,26.0300461,134.46,134.42,6.9502718]
[1744947763308,5.49513629,134.45,134.42,6.9502718]
[1744947764207,7.43826242,134.44,134.42,6.9502718]
[1744947765209,7.43826242,134.44,134.42,1e-08]
[1744947766210,7.43770918,134.45,134.42,1e-08]
[1744947778111,7.43770918,134.45,134.42,6.9502718]
[1744947778631,18.59289007,134.46,134.42,6.9502718]
[1744947778632,26.0300461,134.46,134.42,6.9502718]
[1744947779127,5.49018448,134.45,134.42,6.9502718]
[1744947779330,5.49018448,134.45,134.44,6.95027179]
[1744947780220,5.49018448,134.45,134.44,21.71027179]
[1744947780423,0.03,134.49,134.44,21.71027179]
[1744947780606,0.03,134.49,134.48,6.95027179]
[1744947782528,0.03,134.49,134.47,6.95027179]
[1744947785939,0.03,134.49,134.48,6.95027179]
[1744947788237,0.03,134.49,134.47,6.95027179]
[1744947789939,0.03,134.49,134.46,89.85027179]
[1744947791441,0.03,134.49,134.47,6.95027179]
[1744947793642,0.03,134.49,134.48,6.95027179]
[1744947802145,0.03,134.49,134.48,89.85027179]
[1744947804346,0.03,134.49,134.48,104.59027179]
[1744947808849,0.03,134.55,134.51,0.42648471]
[1744947809157,0.03,134.55,134.54,6.95027179]
[1744947809451,0.03,134.55,134.54,21.69027179]
[1744947809753,0.03,134.55,134.54,132.81784366]
[1744947811547,0.03,134.55,134.54,136.53421053]
[1744947811850,0.03,134.55,134.54,181.18385939]
[1744947812056,0.03,134.57,134.56,26.42648471]
[1744947812354,0.03,134.57,134.56,33.3767565]
[1744947813538,0.03,134.57,134.56,37.092571]
[1744947813738,0.03,134.58,134.57,20.0]
[1744947814041,0.03,134.6,134.59,46.0]
[1744947814350,0.03,134.6,134.59,67.69027179]
[1744947814956,0.03,134.6,134.59,71.40525804]
[1744947815531,0.03,134.61,134.59,201.18247877]
[1744947815737,0.03,134.61,134.6,34.75135895]
[1744947816163,0.03,134.63,134.61,64.64964886]
[1744947816355,0.03,134.63,134.61,32.95027179]
[1744947817676,0.03,134.63,134.61,99.82749252]
[1744947818467,0.03,134.63,134.61,103.54192681]
[1744947819866,0.03,134.63,134.61,186.44192681]
[1744947820467,0.03,134.63,134.62,10.66443016]
[1744947820652,0.03,134.63,134.62,89.85027179]
[1744947821055,0.03,134.63,134.62,104.57027179]
[1744947824657,0.03,134.63,134.62,104.9967565]
[1744947825875,0.03,134.63,134.62,108.71091487]
[1744947828070,0.03,134.66,134.64,46.0]
[1744947828276,0.03,134.66,134.65,6.95027179]
[1744947828453,0.03,134.66,134.64,89.79027179]
[1744947829171,0.03,134.66,134.65,7.3767565]
[1744947829477,0.03,134.67,134.66,26.42648471]
[1744947829649,0.03,134.67,134.66,33.3767565]
[1744947830249,0.03,134.67,134.66,32.95027179]
[1744947830650,0.03,134.67,134.66,6.95027179]
[1744947841385,0.03,134.67,134.65,21.67027179]
[1744947842473,0.03,134.67,134.65,14.72]
[1744947844073,0.03,134.67,134.65,21.67027179]
[1744947845189,0.03,134.67,134.66,6.95027179]
[1744947846367,0.03,134.67,134.65,104.51027179]
[1744947846974,0.03,134.67,134.66,6.95027179]
[1744947850600,0.03,134.67,134.66,89.79027179]
[1744947851999,0.03,134.67,134.66,93.9298116]
[1744947853202,0.03,134.67,134.66,119.9298116]
[1744947854995,0.03,134.67,134.66,89.79027179]
[1744947855230,0.03,134.67,134.66,82.84]
[1744947855386,0.03,134.67,134.66,89.79027179]
[1744947856475,0.03,134.67,134.66,6.95027179]
[1744947857196,0.03,134.67,134.65,14.72]
[1744947857393,8.54157179,134.66,134.61,82.84]
[1744947857692,8.54157179,134.66,134.61,89.79027179]
[1744947857892,6.95027179,134.65,134.61,82.84]
[1744947858092,8.54157179,134.66,134.61,89.79027179]
[1744947858693,8.54157179,134.66,134.62,6.95027179]
[1744947858899,0.03,134.67,134.63,6.95027179]
[1744947859112,0.03,134.67,134.65,6.95027179]
[1744947859612,0.03,134.67,134.64,6.95027179]
[1744947859809,0.03,134.67,134.65,6.95027179]
[1744947860016,0.03,134.67,134.66,6.95027179]
[1744947865405,0.03,134.67,134.64,21.67027179]
[1744947865714,0.03,134.67,134.64,14.72]
[1744947865903,6.98027179,134.67,134.64,14.72]
[1744947866893,14.37638199,134.66,134.64,14.72]
[1744947867095,14.37638199,134.66,134.61,32.95027179]
[1744947867413,14.37638199,134.66,134.61,6.95027179]
[1744947867414,6.95027179,134.65,134.61,6.95027179]
[1744947868011,7.4261102,134.66,134.61,6.95027179]
[1744947868012,14.37638199,134.66,134.61,6.95027179]
[1744947868215,14.37638199,134.66,134.62,6.95027179]
[1744947870247,14.37638199,134.66,134.61,6.95027179]
[1744947872199,7.4261102,134.66,134.62,6.95027179]
[1744947873325,14.37638199,134.66,134.61,6.95027179]
[1744947877122,32.94165749,134.66,134.61,6.95027179]
[1744947879627,6.95027179,134.65,134.6,104.51027179]
[1744947879802,6.95027179,134.63,134.59,26.0]
[1744947880003,6.95027179,134.62,134.58,0.063]
[1744947881734,7.42886858,134.61,134.58,7.01327179]
[1744947883921,7.42831674,134.62,134.58,7.01327179]
[1744947889743,7.42831674,134.62,134.59,6.95027179]
[1744947889907,7.42831674,134.62,134.6,6.95027179]
[1744947890931,7.42776498,134.63,134.6,6.95027179]
[1744947892117,14.37803677,134.63,134.58,89.85327179]
[1744947893229,32.94744923,134.63,134.58,89.85327179]
[1744947893737,32.94744923,134.63,134.59,6.95027179]
[1744947893738,25.99717744,134.63,134.59,6.95027179]
[1744947893933,7.42776498,134.63,134.6,6.95027179]
[1744947895135,18.59399813,134.67,134.6,6.95027179]
[1744947895335,6.95027179,134.66,134.61,6.95027179]
[1744947896038,25.54426992,134.67,134.62,6.95027179]
[1744947896547,32.96982869,134.67,134.62,6.95027179]
[1744947902228,6.95027179,134.66,134.61,21.67027179]
[1744947902539,6.95027179,134.63,134.61,14.72]
[1744947902722,6.95027179,134.62,134.61,14.72]
[1744947902925,6.95027179,134.62,134.58,0.063]
[1744947903944,7.42886858,134.61,134.58,7.01327179]
[1744947906233,7.42831674,134.62,134.58,7.01327179]
[1744947907856,14.37858853,134.62,134.58,0.063]
[1744947908148,6.95027179,134.59,134.58,0.063]
[1744947908446,14.38024429,134.59,134.58,0.063]
[1744947910133,33.02989315,134.59,134.58,0.063]
[1744947910330,34.69559315,134.59,134.58,0.063]
[1744947910731,9.0956725,134.59,134.58,0.063]
[1744947910936,16.04594429,134.59,134.58,0.063]
[1744947911451,9.0956725,134.59,134.58,0.063]
[1744947911751,7.4299725,134.59,134.58,0.063]
[1744947912140,7.42960031,134.6,134.58,0.063]
[1744947912749,7.42886858,134.61,134.58,0.063]
[1744947914345,14.37914037,134.61,134.58,0.063]
[1744947914832,6.95027179,134.59,134.58,0.063]
[1744947916552,14.38024429,134.59,134.58,0.063]
[1744947916851,7.4299725,134.59,134.58,0.063]
[1744947918354,26.00104003,134.61,134.58,0.063]
[1744947918556,32.95131182,134.61,134.58,0.063]
[1744947919433,6.95027179,134.59,134.58,0.063]
[1744947920847,14.38024429,134.59,134.58,0.063]
[1744947927455,33.02989315,134.59,134.58,0.063]
[1744947928931,38.52362541,134.59,134.58,0.063]
[1744947931965,38.52362541,134.59,134.58,1e-08]
[1744947934762,64.52362541,134.59,134.58,1e-08]
[1744947936163,19.87397655,134.59,134.58,1e-08]
[1744947936461,12.92370476,134.59,134.58,1e-08]
[1744947936668,7.4299725,134.59,134.58,1e-08]
[1744947936848,33.02989315,134.59,134.58,1e-08]
[1744947937362,33.02989315,134.59,134.55,0.063]
[1744947937363,26.0,134.58,134.55,0.063]
[1744947937570,6.95027179,134.56,134.55,0.063]
[1744947938667,14.3819008,134.56,134.55,0.063]
[1744947941273,44.64964886,134.53,134.52,0.063]
[1744947941448,44.64964886,134.53,134.5,0.063]
[1744947941449,18.64964886,134.52,134.5,0.063]
[1744947941767,18.64964886,134.5,134.48,0.063]
[1744947941956,6.95027179,134.49,134.48,1e-08]
[1744947942774,6.95027179,134.49,134.47,0.063]
[1744947942775,25.59992065,134.49,134.47,1e-08]
[1744947942948,6.95027179,134.48,134.47,1e-08]
[1744947943150,44.64964886,134.45,134.44,1e-08]
[1744947943373,59.46411454,134.45,134.44,1e-08]
[1744947944675,59.03762983,134.45,134.44,1e-08]
[1744947945265,62.98544978,134.45,134.44,1e-08]
[1744947946884,7.43770918,134.45,134.44,1e-08]
[1744947947550,7.43715603,134.46,134.44,1e-08]
[1744947948250,18.33524777,134.46,134.44,1e-08]
[1744947948569,10.89809174,134.45,134.44,1e-08]
[1744947948748,29.5477406,134.45,134.44,1e-08]
[1744947949676,36.98544978,134.45,134.44,1e-08]
[1744947953258,18.33580092,134.45,134.44,1e-08]
[1744947953452,7.43770918,134.45,134.44,1e-08]
[1744947955686,18.33580092,134.45,134.44,1e-08]
[1744947959387,36.98544978,134.45,134.44,1e-08]
[1744947961086,37.41193449,134.45,134.44,1e-08]
[1744947962086,37.26977292,134.45,134.44,1e-08]
[1744947963169,18.64964886,134.41,134.4,0.063]
[1744947963372,10.89809174,134.41,134.4,0.063]
[1744947963688,36.89809174,134.42,134.4,0.063]
[1744947964476,7.43992262,134.41,134.4,0.063]
[1744947965692,18.33801436,134.41,134.4,0.063]
[1744947966195,36.98766322,134.41,134.4,0.063]
[1744947967193,33.06619146,134.41,134.4,0.063]
[1744947967800,14.4165426,134.41,134.4,0.063]
[1744947968087,33.06619146,134.41,134.4,0.063]
[1744947969180,14.4165426,134.41,134.4,0.063]
[1744947969376,7.43992262,134.41,134.4,0.063]
[1744947972899,33.01289908,134.43,134.4,0.063]
[1744947973382,7.43881574,134.43,134.4,0.063]
[1744947973571,7.43881574,134.43,134.4,7.03961998]
[1744947974995,7.43826242,134.44,134.41,6.97661998]
[1744947975198,7.43826242,134.44,134.42,6.97661998]
[1744947977000,7.43770918,134.45,134.42,6.97661998]
[1744947977898,14.4139759,134.46,134.42,6.97661998]
[1744947978198,7.43735592,134.46,134.43,6.97661998]
[1744947978395,7.43608823,134.48,134.45,6.97661998]
[1744947978700,0.03,134.51,134.47,6.97661998]
[1744947978896,0.03,134.51,134.48,6.97661998]
[1744947979406,0.03,134.51,134.5,6.97661998]
[1744947979789,0.03,134.51,134.49,6.97661998]
[1744947979989,0.03,134.51,134.48,6.97661998]
[1744947981198,0.03,134.51,134.48,10.88213605]
[1744947982606,0.03,134.51,134.47,32.10113605]
[1744947982777,0.03,134.51,134.48,10.88213605]
[1744947984186,0.03,134.51,134.49,10.88213605]
[1744947984684,0.03,134.51,134.5,10.88213605]
[1744947985311,0.03,134.51,134.49,10.88213605]
[1744947986195,0.03,134.51,134.5,10.88213605]
[1744947994006,0.03,134.51,134.48,26.0]
[1744947994212,0.03,134.51,134.48,36.88213605]
[1744947995092,0.03,134.51,134.49,10.88213605]
[1744947995789,0.03,134.51,134.5,10.88213605]
[1744947997305,0.03,134.51,134.5,137.31954731]
[1744947999708,0.03,134.57,134.5,137.31954731]
[1744947999709,0.03,134.57,134.52,20.0]
[1744948000006,0.03,134.57,134.55,10.88213605]
[1744948000194,10.88213605,134.56,134.55,82.84]
[1744948000701,10.88213605,134.56,134.51,10.88213605]
[1744948001585,7.43218134,134.55,134.51,10.88213605]
[1744948003011,7.43183337,134.56,134.53,10.88213605]
[1744948004211,7.46107676,134.57,134.53,10.88213605]
[1744948005513,18.34321281,134.57,134.52,10.88213605]
[1744948006013,18.34321281,134.57,134.52,93.72213605]
[1744948006205,0.03,134.57,134.53,10.88213605]
[1744948009229,0.03,134.57,134.53,6.95913976]
[1744948012715,6.98913976,134.57,134.52,104.51913976]
[1744948012922,6.95913976,134.56,134.52,97.56]
[1744948014000,0.03,134.57,134.52,104.51913976]
[1744948014001,6.98913976,134.57,134.52,104.51913976]
[1744948015626,7.43162901,134.56,134.52,104.51913976]
[1744948017423,7.43162901,134.56,134.53,6.95913976]
[1744948021724,7.46107676,134.57,134.53,6.95913976]
[1744948022908,6.95913976,134.56,134.52,97.56]
[1744948023618,6.95913976,134.56,134.52,14.72]
[1744948023928,7.43218134,134.55,134.52,14.72]
[1744948025340,7.43218134,134.55,134.52,21.67913976]
[1744948025629,7.43218134,134.55,134.53,6.95913976]
[1744948025833,18.6076919,134.57,134.54,6.95913976]
[1744948025834,7.43164211,134.56,134.54,6.95913976]
[1744948027323,0.03,134.57,134.55,6.95913976]
[1744948027499,0.03,134.57,134.56,6.95913976]
[1744948030732,0.03,134.57,134.54,6.95913976]
[1744948030929,0.03,134.57,134.53,89.79913976]
[1744948031131,6.98913976,134.57,134.53,82.84]
[1744948031626,0.03,134.57,134.53,89.79913976]
[1744948032032,7.46107676,134.57,134.53,89.79913976]
[1744948034216,0.03,134.57,134.54,6.95913976]
[1744948034429,0.03,134.57,134.56,6.95913976]
[1744948036020,0.03,134.57,134.55,6.95913976]
[1744948036220,0.03,134.57,134.54,6.95913976]
[1744948036428,0.03,134.57,134.53,89.79913976]
[1744948036826,0.03,134.57,134.54,6.95913976]
[1744948038240,0.03,134.57,134.56,6.95913976]
[1744948038450,0.03,134.57,134.54,6.95913976]
[1744948039237,0.03,134.57,134.53,89.79913976]
[1744948040327,7.46107676,134.57,134.53,89.79913976]
[1744948042042,0.03,134.57,134.53,89.79913976]
[1744948042546,0.03,134.57,134.52,14.72]
[1744948042547,6.95913976,134.55,134.52,14.72]
[1744948042920,25.60878862,134.54,134.48,97.56]
[1744948043135,6.95913976,134.53,134.48,104.51913976]
[1744948043419,6.95913976,134.53,134.49,26.0]
[1744948043919,6.95913976,134.53,134.49,6.95913976]
[1744948044118,7.43383883,134.52,134.49,6.95913976]
[1744948044334,7.43383883,134.52,134.49,26.0]
[1744948044538,7.43383883,134.52,134.49,32.95913976]
[1744948047044,32.97413189,134.54,134.49,32.95913976]
[1744948047847,6.95913976,134.52,134.48,97.56]
[1744948048225,6.95913976,134.51,134.48,97.56]
[1744948048439,6.95913976,134.52,134.48,14.72]
[1744948048631,7.43439149,134.51,134.48,14.72]
[1744948048823,7.43439149,134.51,134.45,231.703]
[1744948048824,18.64964886,134.5,134.45,231.703]
[1744948049030,6.95913976,134.49,134.45,238.66213976]
[1744948049742,25.60878862,134.5,134.45,238.66213976]
[1744948050744,7.43549706,134.49,134.45,238.66213976]
[1744948052448,7.43549706,134.49,134.45,231.703]
[1744948052640,7.43549706,134.49,134.45,238.66213976]
[1744948055835,7.43517514,134.5,134.47,6.95913976]
[1744948056033,25.54241427,134.53,134.48,6.95913976]
[1744948057249,7.43383883,134.52,134.49,6.95913976]
[1744948058352,7.43328625,134.53,134.49,6.95913976]
[1744948058559,7.43289555,134.54,134.51,6.95913976]
[1744948059749,7.43218134,134.55,134.51,6.95913976]
[1744948060144,7.43218134,134.55,134.49,97.56]
[1744948060145,25.60878862,134.54,134.49,104.51913976]
[1744948061758,25.60878862,134.54,134.49,21.67913976]
[1744948062054,7.43328625,134.53,134.49,21.67913976]
[1744948062258,7.43328625,134.53,134.5,6.95913976]
[1744948062869,7.43328625,134.53,134.49,21.67913976]
[1744948064442,32.97564164,134.53,134.49,14.72]
[1744948064640,25.60878862,134.51,134.49,14.72]
[1744948064965,6.95913976,134.5,134.45,21.74213976]
[1744948065166,6.95913976,134.49,134.45,21.74213976]
[1744948065357,6.95913976,134.48,134.45,0.063]
[1744948066142,7.43660295,134.47,134.45,0.063]
[1744948067959,14.39574271,134.47,134.45,0.063]
[1744948070061,6.95913976,134.46,134.45,0.063]
[1744948070263,18.64964886,134.45,134.41,97.56]
[1744948070459,6.95913976,134.44,134.41,14.72]
[1744948070664,6.95913976,134.43,134.4,0.063]
[1744948071469,18.64964886,134.41,134.4,0.063]
[1744948072172,14.39906238,134.41,134.4,0.063]
[1744948072363,26.08957148,134.41,134.4,0.063]
[1744948072888,7.43992262,134.41,134.4,0.063]
[1744948077563,25.60878862,134.41,134.4,0.063]
[1744948077759,25.60878862,134.41,134.39,0.063]
[1744948077964,25.60878862,134.4,134.37,0.063]
[1744948078265,6.95913976,134.38,134.37,0.063]
[1744948079576,14.40072332,134.38,134.37,0.063]
[1744948081256,18.34842977,134.38,134.37,0.063]
[1744948084172,7.44158356,134.38,134.37,0.063]
[1744948085561,18.34842977,134.38,134.37,0.063]
[1744948086959,7.44158356,134.38,134.37,0.063]
[1744948088083,36.99807863,134.38,134.37,0.063]
[1744948088789,18.34842977,134.38,134.37,0.063]
[1744948091087,26.03710796,134.43,134.37,10.96984621]
[1744948091271,36.94395417,134.43,134.39,10.90684621]
[1744948091787,7.43881574,134.43,134.4,10.90684621]
[1744948092168,7.43881574,134.43,134.39,10.90684621]
[1744948092468,7.43881574,134.43,134.4,10.90684621]
[1744948093166,7.43881574,134.43,134.39,10.90684621]
[1744948094291,18.34566195,134.43,134.39,10.90684621]
[1744948095878,10.90684621,134.42,134.37,93.80984621]
[1744948096062,7.43992262,134.41,134.37,10.96984621]
[1744948096271,7.43992262,134.41,134.38,10.90684621]
[1744948097174,7.43940036,134.42,134.39,10.90684621]